bitfinex/quotes_SOLUSD_20250819
["timestamp","ask_amount","ask_price","bid_price","bid_amount"]
[1755628382755,4.61902085,178.86,178.84,53.77775558]
[1755628382961,0.03,178.87,178.86,13.59559401]
[1755628383260,0.03,178.87,178.86,53.57559401]
[1755628383780,0.65,178.87,178.86,53.57559401]
[1755628384281,7.80176115,178.87,178.86,39.98]
[1755628384582,7.80176115,178.87,178.84,0.20216157]
[1755628384771,7.15176115,178.86,178.85,53.71775558]
[1755628384964,7.15176115,178.86,178.84,13.79775558]
[1755628384965,12.390782,178.86,178.84,13.79775558]
[1755628385203,0.62,178.85,178.84,53.77775558]
[1755628387887,7.77176115,178.85,178.84,53.77775558]
[1755628388090,12.390782,178.85,178.84,40.04]
[1755628388276,11.770782,178.85,178.84,40.04]
[1755628388475,12.390782,178.85,178.84,40.04]
[1755628388670,12.390782,178.85,178.84,0.06]
[1755628390261,5.23902085,178.85,178.84,0.06]
[1755628390585,12.390782,178.85,178.84,0.06]
[1755628393103,12.420782,178.85,178.84,0.06]
[1755628400175,5.26902085,178.85,178.84,0.06]
[1755628400501,12.420782,178.85,178.84,0.06]
[1755628408709,11.800782,178.85,178.84,0.06]
[1755628409005,12.420782,178.85,178.84,0.06]
[1755628411873,11.800782,178.85,178.84,0.06]
[1755628412731,4.64902085,178.85,178.84,0.06]
[1755628412902,11.800782,178.85,178.84,0.76]
[1755628413279,11.800782,178.85,178.84,0.06]
[1755628416489,11.800782,178.85,178.84,0.78]
[1755628416694,11.800782,178.85,178.84,0.06]
[1755628418200,4.64902085,178.85,178.84,0.06]
[1755628418406,11.800782,178.85,178.84,0.06]
[1755628419395,4.64902085,178.85,178.84,14.37559401]
[1755628419595,4.64902085,178.85,178.84,14.51775558]
[1755628419999,11.800782,178.85,178.84,0.78]
[1755628421115,11.800782,178.85,178.84,0.06]
[1755628421492,11.800782,178.85,178.84,0.78]
[1755628422293,12.420782,178.85,178.84,0.06]
[1755628422495,4.61902085,178.83,178.82,0.06]
[1755628422799,11.770782,178.83,178.82,0.06]
[1755628423796,12.390782,178.83,178.82,0.06]
[1755628424801,12.390782,178.83,178.8,0.06]
[1755628424802,30.61902085,178.81,178.8,0.06]
[1755628425015,77.690782,178.81,178.8,0.06]
[1755628426206,70.53902085,178.81,178.8,0.06]
[1755628426414,11.770782,178.81,178.8,0.78]
[1755628426612,11.770782,178.81,178.8,0.06]
[1755628428622,11.770782,178.81,178.8,0.78]
[1755628430725,4.61902085,178.81,178.8,0.78]
[1755628431113,4.61902085,178.81,178.8,14.51775558]
[1755628433827,11.770782,178.81,178.8,14.51775558]
[1755628435329,4.61902085,178.81,178.8,14.51775558]
[1755628435630,11.770782,178.81,178.8,14.51775558]
[1755628435827,11.770782,178.81,178.8,0.06]
[1755628436204,4.61902085,178.81,178.8,0.78]
[1755628440804,4.61902085,178.81,178.8,14.51775558]
[1755628441009,4.61902085,178.82,178.81,13.73775558]
[1755628441209,4.61902085,178.82,178.81,21.60951673]
[1755628441950,0.03,178.82,178.81,21.60951673]
[1755628444541,0.03,178.82,178.81,14.45775558]
[1755628444737,0.03,178.82,178.81,21.60951673]
[1755628445131,0.03,178.84,178.81,21.60951673]
[1755628445448,0.03,178.84,178.83,20.88951673]
[1755628446114,0.03,178.84,178.83,21.57951673]
[1755628446952,0.03,178.84,178.83,14.28559401]
[1755628447149,0.03,178.84,178.83,21.43735516]
[1755628447448,0.03,178.84,178.83,21.57951673]
[1755628447830,0.03,178.84,178.83,47.57951673]
[1755628449048,4.64902085,178.84,178.83,39.73775558]
[1755628449417,4.64902085,178.84,178.83,47.57951673]
[1755628449953,4.64902085,178.84,178.83,21.57951673]
[1755628450136,0.03,178.84,178.83,21.57951673]
[1755628452534,0.03,178.84,178.83,23.82060073]
[1755628454650,0.03,178.84,178.83,21.57951673]
[1755628454853,0.03,178.84,178.83,14.42775558]
[1755628455018,0.03,178.84,178.83,21.57951673]
[1755628456240,0.03,178.84,178.83,13.59559401]
[1755628456440,4.64902085,178.84,178.83,13.59559401]
[1755628456639,4.64902085,178.84,178.83,14.42775558]
[1755628456848,4.64902085,178.84,178.83,21.57951673]
[1755628457031,4.64902085,178.84,178.83,14.42775558]
[1755628457228,4.64902085,178.84,178.83,21.57951673]
[1755628458259,4.64902085,178.84,178.83,14.42775558]
[1755628458555,4.64902085,178.84,178.83,13.73775558]
[1755628458755,0.03,178.84,178.82,39.88]
[1755628459059,4.64902085,178.84,178.82,39.88]
[1755628459931,4.64902085,178.84,178.82,40.57]
[1755628460129,4.64902085,178.84,178.82,47.72176115]
[1755628460426,4.64902085,178.84,178.83,14.42775558]
[1755628460640,4.64902085,178.84,178.83,21.57951673]
[1755628460855,4.64902085,178.84,178.83,20.88951673]
[1755628461064,0.03,178.84,178.83,47.57951673]
[1755628461224,0.03,178.84,178.83,39.73775558]
[1755628461431,4.64902085,178.84,178.83,39.73775558]
[1755628463752,4.61902085,178.83,178.82,53.61775558]
[1755628464430,4.64902085,178.84,178.82,53.61775558]
[1755628464625,4.61902085,178.83,178.82,53.61775558]
[1755628465151,4.61902085,178.83,178.82,61.45951673]
[1755628465937,4.64902085,178.84,178.83,13.73775558]
[1755628466140,0.03,178.84,178.83,21.57951673]
[1755628475073,0.03,178.84,178.83,21.43735516]
[1755628475569,0.03,178.84,178.83,21.57951673]
[1755628477074,0.03,178.84,178.83,23.82047573]
[1755628480306,0.03,178.84,178.83,49.13047573]
[1755628480458,0.03,178.84,178.83,53.41559401]
[1755628480786,0.03,178.84,178.83,53.55775558]
[1755628480991,0.03,178.84,178.83,53.41559401]
[1755628481172,0.03,178.84,178.83,61.22735516]
[1755628481488,0.03,178.84,178.83,87.36951673]
[1755628482293,0.03,178.84,178.83,61.92870702]
[1755628482456,0.03,178.86,178.85,39.73775558]
[1755628482655,0.03,178.86,178.85,87.26864449]
[1755628482965,0.03,178.86,178.85,87.92864449]
[1755628483756,0.03,178.86,178.85,93.92678127]
[1755628484488,0.03,178.87,178.86,13.73775558]
[1755628484881,0.03,178.87,178.86,21.54951673]
[1755628485876,0.03,178.87,178.86,61.36951673]
[1755628487580,0.03,178.87,178.86,55.79821258]
[1755628487824,0.03,178.87,178.86,41.97821258]
[1755628488091,0.68,178.87,178.86,88.78781216]
[1755628488607,0.68,178.87,178.86,55.63605101]
[1755628488789,0.03,178.87,178.86,62.92997373]
[1755628489104,0.68,178.87,178.86,53.39559401]
[1755628489270,0.68,178.87,178.86,39.8]
[1755628491884,5.29902085,178.87,178.86,39.8]
[1755628493881,4.64902085,178.87,178.86,53.53775558]
[1755628495350,11.800782,178.87,178.86,53.53775558]
[1755628495481,12.450782,178.87,178.86,53.53775558]
[1755628496103,4.64902085,178.87,178.86,53.53775558]
[1755628496308,4.64902085,178.87,178.86,54.19775558]
[1755628496625,4.64902085,178.87,178.86,53.53775558]
[1755628496789,0.03,178.87,178.86,53.53775558]
[1755628496990,0.03,178.87,178.86,61.34951673]
[1755628498500,0.03,178.87,178.86,54.19775558]
[1755628499719,0.03,178.87,178.86,58.84677658]
[1755628499921,0.03,178.87,178.86,65.99853773]
[1755628500123,0.03,178.87,178.86,58.84677658]
[1755628500306,0.03,178.87,178.86,65.99853773]
[1755628500702,0.03,178.87,178.86,58.84677658]
[1755628500922,0.03,178.87,178.86,58.04461501]
[1755628501227,7.83176115,178.87,178.86,53.39559401]
[1755628501395,7.83176115,178.87,178.86,53.37559401]
[1755628501719,0.03,178.87,178.86,53.51775558]
[1755628502393,0.03,178.87,178.86,61.32951673]
[1755628503193,0.03,178.87,178.86,54.17775558]
[1755628504309,0.03,178.87,178.86,61.32951673]
[1755628505819,0.03,178.88,178.87,19.73589236]
[1755628506018,0.03,178.89,178.88,39.73775558]
[1755628506203,0.03,178.89,178.88,93.32765351]
[1755628507030,0.03,178.89,178.88,98.9179934]
[1755628507210,0.03,178.9,178.89,26.88765351]
[1755628507416,0.03,178.93,178.92,39.73775558]
[1755628507610,4.71902085,179.05,179.0,26.0]
[1755628507916,4.61902085,179.04,179.03,13.73775558]
[1755628508099,4.61902085,179.04,179.03,53.51775558]
[1755628508740,12.430782,179.04,179.03,39.78]
[1755628508910,4.61902085,179.03,179.02,39.78]
[1755628509104,12.430782,179.03,179.02,39.78]
[1755628509428,5.27902085,179.03,179.02,39.78]
[1755628509609,5.27902085,179.03,179.0,0.14216157]
[1755628509816,5.27902085,179.02,179.01,79.51775558]
[1755628510545,5.27902085,179.02,179.01,65.78]
[1755628511046,5.27902085,179.02,179.01,26.0]
[1755628511207,5.27902085,179.02,179.01,65.76]
[1755628511844,5.27902085,179.02,179.01,39.76]
[1755628512615,12.430782,179.02,179.01,39.76]
[1755628513014,11.770782,179.02,179.01,39.76]
[1755628513332,12.430782,179.02,179.01,26.0]
[1755628513807,12.430782,179.02,178.97,39.76]
[1755628513808,4.61902085,178.98,178.97,39.76]
[1755628514005,12.430782,178.98,178.96,39.76]
[1755628514214,11.770782,178.98,178.96,53.35559401]
[1755628514814,4.61902085,178.98,178.96,53.35559401]
[1755628515020,4.61902085,178.97,178.96,54.15775558]
[1755628515343,4.61902085,178.97,178.96,53.49775558]
[1755628518537,4.61902085,178.98,178.97,13.73775558]
[1755628518749,4.61902085,178.99,178.98,39.73775558]
[1755628519036,4.61902085,178.99,178.98,80.15775558]
[1755628519547,4.61902085,179.0,178.99,13.59559401]
[1755628519745,4.61902085,179.0,178.99,14.25559401]
[1755628520235,4.61902085,179.01,179.0,0.14216157]
[1755628520537,4.61902085,179.01,179.0,54.15775558]
[1755628521033,4.61902085,179.01,179.0,53.49775558]
[1755628522127,12.430782,179.01,179.0,39.76]
[1755628522648,4.61902085,179.01,179.0,39.76]
[1755628522814,4.61902085,178.99,178.98,0.66]
[1755628523015,11.770782,178.99,178.98,26.0]
[1755628523221,11.770782,178.99,178.98,65.74]
[1755628524353,4.61902085,178.98,178.97,39.74]
[1755628524527,4.61902085,178.97,178.96,39.74]
[1755628525527,12.430782,178.98,178.96,39.74]
[1755628525731,4.61902085,178.98,178.97,26.0]
[1755628526040,4.61902085,178.97,178.96,39.74]
[1755628526238,4.61902085,178.97,178.95,53.39559401]
[1755628526432,4.61902085,178.96,178.95,54.19775558]
[1755628526838,4.61902085,178.97,178.95,54.19775558]
[1755628527040,4.61902085,178.96,178.95,54.19775558]
[1755628527419,4.61902085,178.96,178.95,53.53775558]
[1755628527848,4.61902085,178.96,178.95,0.06]
[1755628527849,12.430782,178.96,178.95,0.06]
[1755628528346,11.770782,178.96,178.95,0.06]
[1755628529257,12.430782,178.96,178.95,0.06]
[1755628529666,11.770782,178.96,178.95,0.06]
[1755628530557,12.430782,178.96,178.95,0.06]
[1755628531960,4.61902085,178.96,178.95,0.06]
[1755628532258,11.770782,178.96,178.95,0.06]
[1755628533750,4.61902085,178.96,178.95,0.06]
[1755628534139,12.430782,178.96,178.95,0.06]
[1755628535241,11.770782,178.96,178.95,0.06]
[1755628535961,12.450782,178.96,178.95,0.06]
[1755628538258,4.61902085,178.96,178.95,0.06]
[1755628538445,4.61902085,178.96,178.95,0.72]
[1755628539559,11.770782,178.96,178.95,0.06]
[1755628539854,12.450782,178.96,178.95,0.06]
[1755628542859,12.480782,178.96,178.95,0.06]
[1755628547060,30.64902085,178.96,178.95,0.06]
[1755628547275,37.800782,178.96,178.95,0.72]
[1755628547483,4.64902085,178.96,178.95,0.72]
[1755628547959,4.64902085,178.96,178.95,14.45775558]
[1755628552042,4.64902085,178.96,178.95,54.19775558]
[1755628553048,4.64902085,178.96,178.95,54.17775558]
[1755628555050,0.03,178.96,178.95,54.17775558]
[1755628555254,0.03,178.96,178.95,61.32951673]
[1755628555754,4.64902085,178.96,178.95,61.32951673]
[1755628555954,4.64902085,178.96,178.95,54.17775558]
[1755628556166,0.03,178.96,178.95,54.17775558]
[1755628556349,4.64902085,178.96,178.95,14.45775558]
[1755628556558,4.64902085,178.96,178.95,54.17775558]
[1755628558954,11.800782,178.96,178.95,0.06]
[1755628559150,11.800782,178.96,178.95,39.78]
[1755628560154,4.64902085,178.96,178.95,40.44]
[1755628560876,4.64902085,178.96,178.95,14.45775558]
[1755628561380,0.03,178.96,178.95,21.60951673]
[1755628561879,0.03,178.98,178.96,13.73775558]
[1755628562054,4.64902085,178.98,178.97,47.01392272]
[1755628562249,0.03,178.98,178.97,61.26951673]
[1755628566867,0.03,178.98,178.97,63.50834373]
[1755628568988,0.03,178.98,178.97,61.24951673]
[1755628571368,0.03,179.0,178.97,61.24951673]
[1755628571574,0.03,179.0,178.99,46.88951673]
[1755628571765,0.03,179.0,178.99,86.58951673]
[1755628571972,0.03,179.0,178.99,87.30951673]
[1755628572281,0.03,179.0,178.99,89.54821873]
[1755628573765,0.03,179.0,178.99,87.30951673]
[1755628574267,0.03,179.0,178.99,53.29559401]
[1755628574474,0.03,179.0,178.99,61.16735516]
[1755628574678,0.03,179.0,178.99,20.88951673]
[1755628574879,0.03,179.0,178.99,60.58951673]
[1755628575060,0.03,179.0,178.99,13.73775558]
[1755628575268,0.03,179.0,178.99,53.29559401]
[1755628575660,0.03,179.0,178.99,60.58951673]
[1755628576687,0.03,179.0,178.99,53.43775558]
[1755628578182,0.75,179.0,178.99,13.73775558]
[1755628578370,0.75,179.0,178.99,53.43775558]
[1755628578895,0.03,179.0,178.99,53.41775558]
[1755628579799,0.03,179.0,178.99,13.73775558]
[1755628580183,0.03,179.0,178.99,53.41775558]
[1755628583283,0.03,179.0,178.99,13.73775558]
[1755628583477,5.36902085,179.0,178.99,53.41775558]
[1755628584604,12.520782,179.0,178.99,39.68]
[1755628585277,5.36902085,179.0,178.99,39.68]
[1755628585476,12.520782,179.0,178.97,26.0]
[1755628585686,4.61902085,178.97,178.96,0.06]
[1755628585890,11.770782,178.97,178.96,0.06]
[1755628586084,4.61902085,178.97,178.96,53.33559401]
[1755628586685,4.61902085,178.97,178.96,53.47775558]
[1755628586894,4.61902085,178.98,178.97,13.73775558]
[1755628589083,11.770782,178.98,178.96,39.74]
[1755628589290,12.490782,178.98,178.96,0.06]
[1755628589597,12.490782,178.97,178.96,39.74]
[1755628590599,12.490782,178.97,178.96,0.06]
[1755628591098,4.61902085,178.97,178.96,0.06]
[1755628591284,4.61902085,178.97,178.96,39.76]
[1755628591981,12.490782,178.97,178.96,39.76]
[1755628592571,11.770782,178.97,178.96,39.76]
[1755628592787,5.33902085,178.97,178.96,39.76]
[1755628592971,11.770782,178.97,178.96,39.76]
[1755628593172,4.61902085,178.97,178.96,54.21775558]
[1755628593401,4.61902085,178.97,178.96,53.49775558]
[1755628593571,11.770782,178.97,178.96,53.49775558]
[1755628594095,12.490782,178.97,178.96,39.74]
[1755628594486,11.770782,178.97,178.96,39.74]
[1755628596802,4.61902085,178.97,178.96,39.74]
[1755628597005,11.770782,178.97,178.96,39.74]
[1755628598286,12.490782,178.97,178.96,0.06]
[1755628598969,4.61902085,178.97,178.96,0.06]
[1755628599390,12.490782,178.97,178.96,0.06]
[1755628602201,30.61902085,178.95,178.94,0.06]
[1755628602396,37.770782,178.95,178.94,0.06]
[1755628602702,38.490782,178.95,178.94,0.06]
[1755628610408,38.520782,178.95,178.94,0.06]
[1755628612307,78.220782,178.95,178.94,0.06]
[1755628613193,78.220782,178.95,178.9,0.63783574]
[1755628613194,11.770782,178.91,178.9,0.63783574]
[1755628613503,11.770782,178.91,178.85,13.59559401]
[1755628613689,11.770782,178.9,178.85,13.59559401]
[1755628614403,11.770782,178.9,178.86,0.06]
[1755628615178,11.770782,178.9,178.89,0.78]
[1755628616990,4.61902085,178.9,178.89,0.78]
[1755628617509,11.770782,178.9,178.89,0.78]
[1755628619713,11.770782,178.9,178.89,0.06]
[1755628620187,12.490782,178.9,178.89,0.06]
[1755628621300,5.33902085,178.9,178.89,0.06]
[1755628621508,11.770782,178.9,178.89,0.06]
[1755628621695,12.490782,178.9,178.89,0.06]
[1755628622810,52.190782,178.9,178.89,0.06]
[1755628623812,51.470782,178.9,178.89,0.06]
[1755628624788,52.170782,178.9,178.89,0.06]
[1755628625423,51.470782,178.9,178.89,0.06]
[1755628626113,4.61902085,178.9,178.89,0.76]
[1755628626296,11.770782,178.9,178.89,0.06]
[1755628626497,12.470782,178.9,178.89,0.06]
[1755628626813,12.500782,178.9,178.89,0.06]
[1755628627017,11.800782,178.9,178.89,0.06]
[1755628627318,11.800782,178.9,178.89,0.76]
[1755628627720,4.64902085,178.9,178.89,0.06]
[1755628628027,30.64902085,178.9,178.89,0.76]
[1755628628813,30.64902085,178.9,178.89,0.06]
[1755628629695,30.64902085,178.9,178.89,0.76]
[1755628630493,37.800782,178.9,178.89,0.06]
[1755628630692,30.64902085,178.9,178.89,0.06]
[1755628630912,30.64902085,178.9,178.89,0.76]
[1755628631119,30.64902085,178.9,178.89,7.91176115]
[1755628631120,4.64902085,178.9,178.89,7.91176115]
[1755628631309,4.64902085,178.9,178.89,0.76]
[1755628631703,4.64902085,178.9,178.89,7.91176115]
[1755628632018,4.64902085,178.9,178.89,0.76]
[1755628632221,4.64902085,178.9,178.89,0.06]
[1755628634394,4.64902085,178.9,178.89,0.76]
[1755628636526,4.64902085,178.9,178.89,0.06]
[1755628637423,4.64902085,178.9,178.89,0.76]
[1755628638519,4.64902085,178.9,178.89,7.91176115]
[1755628638721,4.64902085,178.9,178.89,21.64951673]
[1755628639103,0.03,178.9,178.89,21.64951673]
[1755628639324,4.64902085,178.9,178.89,21.64951673]
[1755628640807,0.03,178.9,178.89,21.64951673]
[1755628641212,4.64902085,178.9,178.89,21.64951673]
[1755628642609,12.500782,178.9,178.89,0.06]
[1755628642810,11.800782,178.9,178.89,0.06]
[1755628643019,4.64902085,178.9,178.89,0.06]
[1755628643713,11.800782,178.9,178.89,0.06]
[1755628645302,12.500782,178.9,178.89,0.06]
[1755628646430,4.64902085,178.9,178.89,0.06]
[1755628646605,11.800782,178.9,178.89,0.06]
[1755628648230,12.500782,178.9,178.89,0.06]
[1755628648630,11.800782,178.9,178.89,0.06]
[1755628649632,12.500782,178.9,178.89,0.06]
[1755628650404,38.500782,178.9,178.89,0.06]
[1755628650606,78.180782,178.9,178.89,0.06]
[1755628651031,30.61902085,178.88,178.87,0.06]
[1755628651235,37.770782,178.88,178.87,0.06]
[1755628651417,38.470782,178.88,178.87,0.06]
[1755628652722,31.31902085,178.88,178.87,0.06]
[1755628652914,38.470782,178.88,178.87,0.06]
[1755628654711,44.06112189,178.88,178.87,0.06]
[1755628654915,11.770782,178.87,178.86,0.06]
[1755628655115,183.140782,178.87,178.86,0.06]
[1755628655628,183.140782,178.87,178.85,0.06]
[1755628655834,26.0,178.85,178.84,0.06]
[1755628656034,37.770782,178.85,178.84,0.06]
[1755628656240,38.460782,178.85,178.84,0.06]
[1755628657242,38.460782,178.85,178.79,0.06]
[1755628657243,4.61902085,178.82,178.79,0.06]
[1755628657443,70.29902085,178.82,178.79,0.06]
[1755628657650,78.140782,178.82,178.79,0.06]
[1755628658316,52.140782,178.82,178.79,0.06]
[1755628658511,30.61902085,178.8,178.79,0.06]
[1755628658716,77.450782,178.8,178.79,0.06]
[1755628658921,85.29254315,178.8,178.79,0.06]
[1755628659125,4.61902085,178.79,178.78,0.06]
[1755628659448,12.460782,178.79,178.78,0.06]
[1755628660142,11.770782,178.79,178.78,0.06]
[1755628660519,12.460782,178.79,178.78,0.06]
[1755628660719,4.61902085,178.78,178.77,0.2]
[1755628661025,52.160782,178.78,178.77,0.2]
[1755628663126,4.61902085,178.77,178.74,0.06]
[1755628663346,30.61902085,178.75,178.74,0.06]
[1755628663650,30.61902085,178.73,178.72,0.06]
[1755628663849,77.470782,178.73,178.72,0.06]
[1755628664935,78.160782,178.73,178.72,0.06]
[1755628665143,77.470782,178.73,178.72,0.06]
[1755628666735,37.770782,178.73,178.72,0.78]
[1755628666930,37.770782,178.73,178.72,0.06]
[1755628668351,37.770782,178.73,178.72,0.78]
[1755628669034,4.61902085,178.73,178.72,0.78]
[1755628669351,11.770782,178.73,178.72,0.78]
[1755628670429,37.770782,178.73,178.72,0.78]
[1755628670631,37.770782,178.73,178.72,0.06]
[1755628670928,30.61902085,178.73,178.72,0.78]
[1755628671135,37.770782,178.73,178.72,0.78]
[1755628671337,11.770782,178.73,178.72,0.78]
[1755628671649,4.61902085,178.73,178.72,0.78]
[1755628672559,11.770782,178.73,178.72,0.78]
[1755628673830,4.61902085,178.73,178.72,0.78]
[1755628677771,4.61902085,178.73,178.72,0.06]
[1755628677772,11.770782,178.73,178.72,0.06]
[1755628678171,4.61902085,178.73,178.72,0.06]
[1755628678474,11.770782,178.73,178.72,0.06]
[1755628679041,11.770782,178.73,178.72,0.78]
[1755628680374,4.61902085,178.73,178.72,14.51775558]
[1755628680591,4.64902085,178.74,178.73,0.14216157]
[1755628680743,4.64902085,178.74,178.73,7.29392272]
[1755628680943,0.03,178.74,178.73,8.01392272]
[1755628681374,0.03,178.74,178.73,0.86216157]
[1755628681582,4.64902085,178.74,178.73,0.86216157]
[1755628681748,0.03,178.74,178.73,0.86216157]
[1755628681948,4.64902085,178.74,178.73,0.86216157]
[1755628682979,0.03,178.74,178.73,21.60951673]
[1755628684064,0.03,178.74,178.73,47.60951673]
[1755628684250,0.03,178.74,178.73,53.60765351]
[1755628684449,0.03,178.74,178.73,60.75941451]
[1755628685544,0.03,178.74,178.73,53.60765351]
[1755628685977,0.03,178.74,178.73,77.52170612]
[1755628686184,0.03,178.8,178.77,39.59559401]
[1755628686380,0.03,178.8,178.79,7.29392272]
[1755628686581,0.03,178.8,178.79,0.14216157]
[1755628686877,4.64902085,178.8,178.79,0.82216157]
[1755628688256,4.64902085,178.8,178.79,7.97392272]
[1755628691491,0.03,178.8,178.79,7.97392272]
[1755628691989,0.03,178.8,178.79,13.73775558]
[1755628691990,4.64902085,178.8,178.79,13.73775558]
[1755628692177,4.61902085,178.78,178.77,54.07559401]
[1755628692382,4.61902085,178.78,178.77,54.75559401]
[1755628693463,4.61902085,178.78,178.77,54.89775558]
[1755628693770,4.61902085,178.78,178.77,54.21775558]
[1755628693961,4.61902085,178.78,178.77,13.73775558]
[1755628694282,4.61902085,178.78,178.77,54.23775558]
[1755628694795,4.61902085,178.78,178.77,13.73775558]
[1755628695289,4.61902085,178.73,178.72,0.06]
[1755628695654,4.61902085,178.74,178.73,13.59559401]
[1755628695858,4.61902085,178.74,178.73,14.27559401]
[1755628696190,4.61902085,178.74,178.73,13.73775558]
[1755628696482,4.61902085,178.73,178.72,0.06]
[1755628696677,5.29902085,178.73,178.72,0.06]
[1755628697079,12.450782,178.73,178.72,0.06]
[1755628697760,11.770782,178.73,178.72,0.06]
[1755628697960,12.450782,178.73,178.72,0.06]
[1755628698583,4.61902085,178.73,178.72,0.06]
[1755628698762,4.61902085,178.73,178.72,0.88216157]
[1755628699389,12.450782,178.73,178.72,0.06]
[1755628700666,11.770782,178.73,178.72,0.06]
[1755628700870,12.450782,178.73,178.72,0.06]
[1755628701574,5.29902085,178.73,178.72,0.06]
[1755628701777,11.770782,178.73,178.72,0.06]
[1755628702093,12.450782,178.73,178.72,0.06]
[1755628702596,11.770782,178.73,178.72,0.06]
[1755628702962,4.61902085,178.73,178.72,0.06]
[1755628703192,4.61902085,178.73,178.72,0.88216157]
[1755628703491,11.770782,178.73,178.72,0.20216157]
[1755628703869,11.770782,178.73,178.72,0.06]
[1755628706192,4.61902085,178.73,178.72,0.06]
[1755628706505,4.61902085,178.73,178.72,0.88216157]
[1755628706670,4.61902085,178.73,178.72,0.20216157]
[1755628706871,4.61902085,178.73,178.72,0.88216157]
[1755628707401,4.61902085,178.73,178.72,0.20216157]
[1755628707603,157.0,178.79,178.73,0.14216157]
[1755628707604,4.61902085,178.76,178.73,0.14216157]
[1755628707767,0.71,178.8,178.74,14.41775558]
[1755628707768,4.61902085,178.75,178.74,14.41775558]
[1755628708602,11.770782,178.75,178.72,0.06]
[1755628708791,11.770782,178.73,178.72,0.20216157]
[1755628708995,4.61902085,178.73,178.72,0.20216157]
[1755628709291,11.770782,178.73,178.72,0.20216157]
[1755628710263,4.61902085,178.73,178.72,0.20216157]
[1755628710579,11.770782,178.73,178.72,0.20216157]
[1755628711180,11.770782,178.73,178.72,0.06]
[1755628713100,4.61902085,178.73,178.72,0.06]
[1755628713281,11.770782,178.73,178.72,0.06]
[1755628713998,4.61902085,178.73,178.72,0.06]
[1755628714164,11.770782,178.73,178.72,0.06]
[1755628714365,12.440782,178.73,178.72,0.06]
[1755628715779,5.28902085,178.73,178.72,0.06]
[1755628715976,12.440782,178.73,178.72,0.06]
[1755628718474,42.95388485,178.73,178.72,0.06]
[1755628718797,46.70636498,178.73,178.72,0.06]
[1755628719579,41.52326213,178.73,178.72,0.06]
[1755628719778,4.61902085,178.73,178.72,0.06]
[1755628720002,4.61902085,178.73,178.72,0.74]
[1755628720308,4.61902085,178.73,178.72,0.88216157]
[1755628720530,4.61902085,178.73,178.72,14.47775558]
[1755628721067,4.61902085,178.73,178.72,21.62951673]
[1755628721900,4.61902085,178.73,178.72,14.47775558]
[1755628722207,11.770782,178.73,178.72,0.06]
[1755628723413,12.440782,178.73,178.72,0.06]
[1755628724620,11.770782,178.73,178.72,0.06]
[1755628725223,5.28902085,178.73,178.72,0.06]
[1755628725422,37.770782,178.73,178.72,0.06]
[1755628725591,38.440782,178.73,178.72,0.06]
[1755628725784,42.1963977,178.73,178.72,0.06]
[1755628728510,41.5263977,178.73,178.72,0.06]
[1755628729214,37.770782,178.73,178.72,0.06]
[1755628730021,30.61902085,178.73,178.72,0.06]
[1755628730196,4.61902085,178.73,178.72,0.88216157]
[1755628730395,4.64902085,178.74,178.73,0.14216157]
[1755628730710,4.64902085,178.74,178.73,21.56951673]
[1755628730912,4.61902085,178.77,178.74,13.73775558]
[1755628731104,4.61902085,178.76,178.75,14.41775558]
[1755628731529,4.61902085,178.76,178.75,21.56951673]
[1755628731906,4.64902085,178.78,178.77,0.14216157]
[1755628732104,4.64902085,178.78,178.77,0.82216157]
[1755628734836,4.64902085,178.78,178.77,0.68]
[1755628735019,4.64902085,178.78,178.77,26.0]